bitfinex-derivatives/quotes_BNBF0:USTF0_20250708
["timestamp","ask_amount","ask_price","bid_price","bid_amount"]
[1751952380035,1.70264648,659.74,659.14,2.2740107]
[1751952380530,2.72111174,659.74,659.14,2.2740107]
[1751952380731,1.70264648,659.74,659.15,2.2740107]
[1751952381334,1.70264648,659.74,659.14,2.2740107]
[1751952381530,1.70264648,659.74,659.15,2.2740107]
[1751952385138,1.70264648,659.73,659.15,2.2740107]
[1751952385439,1.70264648,659.74,659.15,2.2740107]
[1751952389644,1.70264648,659.71,659.23,2.2740107]
[1751952391547,1.70264648,659.72,659.2,2.2740107]
[1751952392048,1.70264648,659.71,659.21,2.2740107]
[1751952393742,1.70264648,659.72,659.2,2.2740107]
[1751952396849,1.70264648,659.72,659.19,2.2740107]
[1751952401351,1.70264648,659.72,659.2,2.2740107]
[1751952402854,1.70264648,659.73,659.18,2.2740107]
[1751952403551,1.70264648,659.75,659.12,2.2740107]
[1751952403750,1.70264648,659.75,659.13,2.2740107]
[1751952403952,1.70264648,659.74,659.12,2.2740107]
[1751952411564,1.70264648,659.77,659.04,2.2740107]
[1751952413165,1.70264648,659.77,659.05,2.2740107]
[1751952413367,1.70264648,659.76,659.06,2.2740107]
[1751952415266,1.70264648,659.76,659.07,2.2740107]
[1751952416170,1.70264648,659.76,659.08,1.249]
[1751952421478,1.70264648,659.71,659.18,2.2740107]
[1751952421873,1.70264648,659.71,659.17,2.2740107]
[1751952423179,1.70264648,659.71,659.18,2.2740107]
[1751952423875,1.70264648,659.73,659.1,2.2740107]
[1751952424075,1.70264648,659.73,659.08,1.249]
[1751952424076,1.70264648,659.75,659.08,1.249]
[1751952424274,1.70264648,659.62,659.08,1.249]
[1751952425078,1.70264648,659.61,659.08,1.249]
[1751952425378,1.70264648,659.62,659.08,1.249]
[1751952426375,1.70264648,659.63,659.08,1.249]
[1751952428281,1.70264648,659.64,659.08,1.249]
[1751952428876,1.70264648,659.68,659.08,1.249]
[1751952430776,3.97006355,659.68,659.08,1.249]
[1751952430975,2.26741707,659.67,659.08,1.249]
[1751952431174,1.70264648,659.68,659.08,1.249]
[1751952431380,1.70264648,659.69,659.08,1.249]
[1751952433978,1.70264648,659.65,659.08,1.249]
[1751952434179,1.70264648,659.66,659.08,1.249]
[1751952434380,1.70264648,659.65,659.08,1.249]
[1751952435879,1.70264648,659.66,659.08,1.249]
[1751952436082,1.70264648,659.61,658.96,2.2740107]
[1751952438185,1.70264648,659.62,658.95,2.2740107]
[1751952439385,1.70264648,659.62,658.96,1.962]
[1751952441183,1.70264648,659.63,658.96,1.962]
[1751952441588,1.70264648,659.62,658.96,4.2360107]
[1751952442287,1.70264648,659.62,658.96,1.962]
[1751952443186,1.70264648,659.63,658.96,1.962]
[1751952444186,0.41229361,659.72,658.96,1.962]
[1751952444187,1.70264648,659.66,658.96,1.962]
[1751952446790,0.41219441,659.81,658.96,1.962]
[1751952446791,1.70264648,659.68,658.96,1.962]
[1751952447188,1.70264648,659.69,658.96,1.962]
[1751952453995,1.70264648,659.67,658.96,1.962]
[1751952456893,1.70264648,659.65,658.96,1.962]
[1751952457295,1.70264648,659.64,658.96,1.962]
[1751952457696,0.41213494,659.76,658.96,1.962]
[1751952457697,1.70264648,659.65,658.96,1.962]
[1751952459596,1.70264648,659.64,658.96,1.962]
[1751952461901,1.70264648,659.67,658.96,1.962]
[1751952462098,1.70264648,659.71,658.96,1.962]
[1751952462297,1.70264648,659.75,658.96,1.962]
[1751952466201,1.70264648,659.74,658.96,1.962]
[1751952470205,1.70264648,659.73,658.96,1.962]
[1751952471806,1.70264648,659.69,659.04,2.2740107]
[1751952472206,1.70264648,659.7,659.02,2.2740107]
[1751952473307,1.70264648,659.69,659.02,2.2740107]
[1751952474206,1.70264648,659.69,659.03,2.2740107]
[1751952476101,0.41269227,659.79,659.03,2.2740107]
[1751952476102,1.70264648,659.68,659.03,2.2740107]
[1751952476307,1.70264648,659.68,659.04,2.2740107]
[1751952476707,1.70264648,659.69,659.03,2.2740107]
[1751952476904,1.70264648,659.69,659.05,1.629]
[1751952477207,1.70264648,659.68,659.05,1.629]
[1751952479205,1.70264648,659.67,659.05,1.629]
[1751952479709,1.70264648,659.68,659.05,1.629]
[1751952482014,1.70264648,659.67,659.05,1.629]
[1751952486616,1.70264648,659.66,659.06,2.2740107]
[1751952489019,0.41289975,659.76,659.06,2.2740107]
[1751952489319,1.70196026,659.66,659.06,2.2740107]
[1751952489518,1.70196026,659.65,659.08,2.2740107]
[1751952489919,1.70196026,659.66,659.06,2.2740107]
[1751952491418,1.70196026,659.66,659.07,2.2740107]
[1751952491625,1.70196026,659.66,659.06,2.2740107]
[1751952492325,1.70196026,659.66,659.07,2.2740107]
[1751952492824,1.70196026,659.65,659.08,2.2740107]
[1751952498630,1.70196026,659.66,659.06,2.2740107]
[1751952499827,1.70196026,659.65,659.08,2.2740107]
[1751952500829,2.71998454,659.65,659.08,2.2740107]
[1751952501032,1.70196026,659.65,659.08,2.2740107]
[1751952502630,1.70196026,659.65,659.09,2.2740107]
[1751952502934,1.70196026,659.65,659.08,2.2740107]
[1751952504130,1.70196026,659.68,659.05,1.629]
[1751952505734,3.96798034,659.68,659.05,1.629]
[1751952506030,1.01802428,659.67,659.05,1.629]
[1751952506235,1.70196026,659.68,659.05,1.629]
[1751952508235,1.70196026,659.67,659.05,1.629]
[1751952512332,1.70196026,659.66,659.05,1.629]
[1751952514036,1.70196026,659.63,659.12,2.2740107]
[1751952514237,1.70196026,659.62,659.12,2.2740107]
[1751952515635,1.70298988,659.62,659.12,2.2740107]
[1751952516236,1.70298988,659.62,659.13,2.2740107]
[1751952517133,1.70298988,659.61,659.13,2.2740107]
[1751952518638,1.70298988,659.63,659.09,2.2740107]
[1751952519236,1.70298988,659.62,659.1,2.2740107]
[1751952520535,3.96999026,659.62,659.1,2.2740107]
[1751952520740,1.01847672,659.61,659.1,2.2740107]
[1751952520936,1.70298988,659.62,659.1,2.2740107]
[1751952521141,1.70298988,659.62,659.05,1.629]
[1751952521142,1.70298988,659.6,659.12,2.2740107]
[1751952522142,1.70298988,659.61,659.1,2.2740107]
[1751952522438,1.70298988,659.6,659.11,2.2740107]
[1751952525041,1.70298988,659.61,659.1,2.2740107]
[1751952527246,5.671845,660.38,659.05,1.629]
[1751952527247,2.7214666,659.62,659.06,2.2740107]
[1751952527544,1.70298988,659.62,659.06,2.2740107]
[1751952528447,1.70298988,659.61,659.08,2.2740107]
[1751952528847,1.70298988,659.62,659.08,2.2740107]
[1751952531848,1.70298988,659.61,659.08,2.2740107]
[1751952532845,1.70298988,659.61,659.09,1.974]
[1751952534851,1.70298988,659.61,659.09,4.2480107]
[1751952536851,1.70298988,659.64,659.09,1.974]
[1751952537054,1.70298988,659.63,659.09,1.974]
[1751952538550,0.41408316,659.76,659.09,1.974]
[1751952538551,1.70298988,659.65,659.09,1.974]
[1751952541456,1.70298988,659.66,659.09,1.974]
[1751952546856,1.70298988,659.63,659.16,2.2740107]
[1751952547654,1.70298988,659.63,659.17,2.2740107]
[1751952548356,1.70298988,659.63,659.16,2.2740107]
[1751952548557,2.72252821,659.63,659.16,2.2740107]
[1751952548763,1.70298988,659.63,659.16,2.2740107]
[1751952548960,1.70298988,659.63,659.15,2.2740107]
[1751952549959,1.70298988,659.63,659.16,2.2740107]
[1751952551460,1.70298988,659.63,659.15,2.2740107]
[1751952554668,1.70298988,659.63,659.16,2.2740107]
[1751952558772,1.70298988,659.63,659.17,2.2740107]
[1751952565977,1.70298988,659.63,659.16,2.2740107]
[1751952567677,1.70298988,659.63,659.17,2.2740107]
[1751952567880,2.72223961,659.63,659.17,2.2740107]
[1751952568183,1.70298988,659.63,659.17,2.2740107]
[1751952571480,1.70298988,659.64,659.14,2.2740107]
[1751952571784,1.70298988,659.7,659.09,4.2480107]
[1751952571980,1.70298988,659.71,659.1,2.2740107]
[1751952572885,1.70298988,659.71,659.09,4.2480107]
[1751952573185,3.97199939,659.78,659.14,2.2740107]
[1751952573482,1.01924973,659.77,659.14,2.2740107]
[1751952573686,1.70298988,659.78,659.14,2.2740107]
[1751952574188,1.70298988,659.79,659.13,2.2740107]
[1751952574587,1.70298988,659.79,659.14,2.2740107]
[1751952575190,1.70298988,659.79,659.13,2.2740107]
[1751952575789,1.70298988,659.8,659.13,2.2740107]
[1751952575985,1.70298988,659.79,659.13,2.2740107]
[1751952576289,1.70298988,659.8,659.13,2.2740107]
[1751952578287,1.70298988,659.8,659.12,2.2740107]
[1751952579085,2.95260304,659.8,659.12,2.2740107]
[1751952579390,1.70298988,659.81,659.12,2.2740107]
[1751952581188,1.70298988,659.81,659.11,2.2740107]
[1751952581589,1.70298988,659.78,659.18,2.2740107]
[1751952582294,1.70298988,659.79,659.18,2.2740107]
[1751952582593,1.70298988,659.77,659.21,2.2740107]
[1751952583192,1.70298988,659.78,659.21,2.2740107]
[1751952583397,1.70298988,659.78,659.2,2.2740107]
[1751952584599,1.70298988,659.77,659.22,2.2740107]
[1751952588502,1.70298988,659.77,659.23,2.002]
[1751952589200,1.70298988,659.78,659.23,2.002]
[1751952590098,1.70298988,659.8,659.23,2.002]
[1751952594098,0.41277023,659.9,659.23,2.002]
[1751952594302,2.26727788,659.91,659.23,2.002]
[1751952594303,1.70166749,659.8,659.23,2.002]
[1751952600003,1.70166749,659.78,659.23,2.002]
[1751952613208,1.70166749,659.78,659.23,4.2760107]
[1751952614414,1.70166749,659.78,659.23,2.2740107]
[1751952614709,1.70166749,659.79,659.21,2.2740107]
[1751952614912,1.70166749,659.78,659.21,2.2740107]
[1751952616114,1.70166749,659.79,659.2,2.2740107]
[1751952617609,1.70166749,659.79,659.21,1.398]
[1751952618719,1.70166749,659.81,659.21,1.398]
[1751952620214,1.70166749,659.8,659.21,1.398]
[1751952624016,1.70166749,659.81,659.21,1.398]
[1751952624217,1.70166749,659.8,659.21,1.398]
[1751952625222,0.412787,659.93,659.21,1.398]
[1751952625223,1.70166749,659.78,659.21,1.398]
[1751952625420,1.70166749,659.77,659.22,2.2740107]
[1751952627217,1.70166749,659.76,659.23,2.2740107]
[1751952627516,1.70166749,659.79,659.21,1.398]
[1751952629323,2.71927855,659.79,659.21,1.398]
[1751952629719,2.94859535,659.79,659.21,1.398]
[1751952630021,1.70166749,659.79,659.21,1.398]
[1751952630226,0.41308394,659.91,659.21,1.398]
[1751952630227,1.70166749,659.78,659.21,1.398]
[1751952631223,1.70166749,659.77,659.21,1.398]
[1751952632220,1.70166749,659.76,659.21,1.398]
[1751952634131,1.70166749,659.74,659.22,2.2740107]
[1751952634430,1.70166749,659.75,659.22,2.2740107]
[1751952635230,1.70166749,659.74,659.23,2.2740107]
[1751952638529,1.70166749,659.73,659.24,2.2740107]
[1751952638828,1.70166749,659.73,659.25,2.2740107]
[1751952639734,1.70166749,659.73,659.24,2.2740107]
[1751952641836,1.70166749,659.72,659.26,2.2740107]
[1751952642336,1.70444042,659.72,659.26,2.2740107]
[1751952642632,1.70444042,659.72,659.27,2.2740107]
[1751952643036,2.72365292,659.72,659.27,2.2740107]
[1751952643237,1.70444042,659.72,659.27,2.2740107]
[1751952645233,1.70444042,659.72,659.28,2.2740107]
[1751952645438,1.70444042,659.73,659.24,2.2740107]
[1751952647940,2.68237075,659.84,659.24,2.2740107]
[1751952648136,1.70445867,659.73,659.24,2.2740107]
[1751952648339,1.70445867,659.73,659.25,2.2740107]
[1751952649036,1.70445867,659.73,659.26,1.513]
[1751952649240,1.70445867,659.74,659.26,1.513]
[1751952651547,1.70445867,659.75,659.26,1.513]
[1751952660850,1.70445867,659.74,659.26,1.513]
[1751952663253,0.41341013,659.85,659.26,1.513]
[1751952663451,1.70452582,659.74,659.26,1.513]
[1751952665354,1.70452582,659.73,659.26,1.513]
[1751952666552,1.70452582,659.72,659.26,3.7870107]
[1751952667958,1.70452582,659.72,659.27,2.2740107]
[1751952670259,1.70452582,659.72,659.28,2.2740107]
[1751952670459,1.70452582,659.71,659.28,2.2740107]
[1751952673862,1.70452582,659.71,659.29,2.2740107]
[1751952676361,1.70452582,659.72,659.27,2.2740107]
[1751952678264,1.70452582,659.72,659.26,1.513]
[1751952678265,1.70452582,659.72,659.28,2.2740107]
[1751952679368,1.70452582,659.71,659.28,2.2740107]
[1751952680169,1.70452582,659.72,659.26,3.7870107]
[1751952681171,1.70452582,659.77,659.26,1.513]
[1751952681370,2.72345231,659.77,659.26,1.513]
[1751952681568,1.70452582,659.77,659.26,1.513]
[1751952690478,1.70452582,659.76,659.26,1.513]
[1751952690776,1.70452582,659.72,659.26,1.513]
[1751952691074,1.70452582,659.7,659.26,1.513]
[1751952691377,1.70452582,659.74,659.26,1.513]
[1751952691574,2.68190339,659.84,659.26,1.513]
[1751952691575,1.70452582,659.71,659.26,1.513]
[1751952692884,1.70452582,659.7,659.26,1.513]
[1751952694176,1.70347788,659.7,659.26,1.513]
[1751952694379,1.70347788,659.71,659.26,1.513]
[1751952700286,1.70347788,659.68,659.26,1.513]
[1751952701691,1.70347788,659.7,659.26,1.513]
[1751952702387,1.70347788,659.68,659.26,1.513]
[1751952703190,1.70347788,659.69,659.26,1.513]
[1751952703490,1.70347788,659.68,659.26,1.513]
[1751952704188,2.7216181,659.68,659.26,1.513]
[1751952704388,1.70347788,659.68,659.26,1.513]
[1751952704589,1.70347788,659.69,659.26,1.513]
[1751952707693,1.70347788,659.71,659.26,1.513]
[1751952709096,0.41288517,659.82,659.12,0.26385824]
[1751952709097,1.70347788,659.7,659.12,0.26385824]
[1751952709293,1.70347788,659.61,659.12,0.26385824]
[1751952709595,1.70347788,659.62,659.12,0.26385824]
[1751952710293,1.70347788,659.63,659.12,0.26385824]
[1751952710594,1.70347788,659.69,659.12,0.26385824]
[1751952710892,1.70347788,659.63,659.12,0.26385824]
[1751952711695,1.70347788,659.63,659.13,1.781]
[1751952712396,1.70347788,659.64,659.13,1.781]
[1751952714596,1.70347788,659.65,659.13,1.781]
[1751952717500,1.70347788,659.64,659.13,1.781]
[1751952719001,1.70347788,659.62,659.13,1.781]
[1751952719404,1.70347788,659.63,659.13,1.781]
[1751952721504,1.70347788,659.64,659.13,1.781]
[1751952721906,1.70347788,659.68,659.13,1.781]
[1751952722103,2.72117758,659.68,659.13,1.781]
[1751952722303,1.70347788,659.68,659.13,1.781]
[1751952722809,1.70347788,659.69,659.12,0.26385824]
[1751952723005,1.70347788,659.7,659.12,0.26385824]
[1751952723503,1.70347788,659.73,659.12,0.26385824]
[1751952725308,1.70347788,659.73,659.13,1.375]
[1751952730408,1.70347788,659.72,659.13,1.375]
[1751952730707,1.70347788,659.73,659.13,1.375]
[1751952731115,1.70347788,659.72,659.13,1.375]
[1751952732810,1.70347788,659.71,659.13,1.375]
[1751952734215,2.72014738,659.71,659.13,1.375]
[1751952734515,1.70347788,659.71,659.13,1.375]
[1751952734816,1.70347788,659.72,659.13,1.375]
[1751952735716,1.70347788,659.71,659.13,1.375]
[1751952735916,1.70347788,659.75,659.13,1.375]
[1751952737517,3.96706216,659.75,659.13,1.375]
[1751952737713,1.0166695,659.74,659.13,1.375]
[1751952738017,1.70347788,659.75,659.13,1.375]
[1751952741016,1.70347788,659.76,659.13,1.375]
[1751952744719,1.70347788,659.75,659.13,1.375]
[1751952745823,1.70347788,659.72,659.13,1.375]
[1751952746522,1.70347788,659.72,659.13,3.6490107]
[1751952746721,1.70347788,659.72,659.13,1.375]
[1751952751622,1.70347788,659.71,659.13,1.375]
[1751952752127,1.70347788,659.72,659.13,1.375]
[1751952753028,1.70347788,659.71,659.13,1.375]
[1751952754425,1.01758405,659.72,659.13,1.375]
[1751952754629,1.70347788,659.73,659.13,1.375]
[1751952760732,1.70347788,659.74,659.13,1.375]
[1751952762432,1.70347788,659.74,659.12,0.26385824]
[1751952762632,1.70347788,659.73,659.12,0.26385824]
[1751952764340,1.70347788,659.71,659.12,0.26385824]
[1751952765340,1.70347788,659.71,659.13,1.866]
[1751952765636,1.70347788,659.7,659.13,1.866]
[1751952769343,1.70347788,659.69,659.13,1.866]
[1751952770740,1.70347788,659.68,659.14,2.2740107]
[1751952771644,1.70347788,659.67,659.14,2.2740107]
[1751952773344,1.70347788,659.67,659.15,2.2740107]
[1751952775352,1.70347788,659.66,659.15,2.2740107]
[1751952776448,1.70347788,659.66,659.16,2.2740107]
[1751952777549,1.70347788,659.65,659.16,2.2740107]
[1751952778458,1.70347788,659.65,659.17,2.2740107]
[1751952779053,1.70347788,659.65,659.16,2.2740107]
[1751952779354,1.70347788,659.64,659.17,2.2740107]
[1751952779752,1.70347788,659.64,659.18,2.2740107]
[1751952781154,1.70347788,659.65,659.16,2.2740107]
[1751952781458,1.70347788,659.66,659.13,4.1400107]
[1751952781854,1.70347788,659.66,659.13,1.866]
[1751952783553,2.68229154,659.79,659.13,1.866]
[1751952783756,1.70472881,659.67,659.13,1.866]
[1751952785162,0.41351464,659.79,659.13,1.866]
[1751952785359,1.70472976,659.67,659.13,1.866]
[1751952791464,1.70472976,659.66,659.13,1.866]
[1751952792263,1.70472976,659.65,659.14,2.2740107]
[1751952793267,1.70472976,659.64,659.17,2.2740107]
[1751952794064,1.70472976,659.63,659.17,2.2740107]
[1751952795367,1.70472976,659.64,659.17,2.2740107]
[1751952799172,1.70472976,659.63,659.17,2.2740107]
[1751952800072,1.70472976,659.63,659.19,2.2740107]
[1751952808982,1.70472976,659.63,659.12,0.26385824]
[1751952809182,1.70472976,659.67,659.12,0.26385824]
[1751952809779,1.70472976,659.67,659.13,1.484]
[1751952811380,1.70472976,659.66,659.13,1.484]
[1751952817586,1.70472976,659.67,659.13,1.484]
[1751952818990,1.70472976,659.65,659.13,1.484]
[1751952819185,1.70472976,659.66,659.13,1.484]
[1751952820290,1.70472976,659.65,659.13,1.484]
[1751952821490,1.70472976,659.66,659.13,1.484]
[1751952822391,1.70472976,659.65,659.13,1.484]
[1751952827597,1.70472976,659.63,659.18,2.2740107]
[1751952829100,1.70472976,659.62,659.19,2.2740107]
[1751952829302,1.70472976,659.62,659.2,2.2740107]
[1751952831601,1.70472976,659.63,659.16,2.2740107]
[1751952833600,1.01898396,659.63,659.14,2.2740107]
[1751952833801,1.70472976,659.64,659.14,2.2740107]
[1751952841618,1.70472976,659.63,659.18,2.2740107]
[1751952843520,0.41352796,659.72,659.12,0.26385824]
[1751952843521,1.70472976,659.62,659.2,2.2740107]
[1751952844324,1.70472976,659.63,659.17,2.2740107]
[1751952846222,1.70472976,659.63,659.18,1.646]
[1751952854332,1.70472976,659.62,659.2,2.2740107]
[1751952858035,1.70472976,659.62,659.19,2.2740107]
[1751952859936,2.724155,659.63,659.18,1.646]
[1751952860232,1.70472976,659.63,659.18,1.646]
[1751952866040,1.70472976,659.64,659.18,1.646]
[1751952869548,1.70472976,659.63,659.18,1.646]
[1751952875946,1.70472976,659.62,659.2,2.2740107]
[1751952878154,1.70472976,659.64,659.22,2.2740107]
[1751952878451,1.70472976,659.65,659.22,2.2740107]
[1751952879555,2.72410217,659.65,659.22,2.2740107]
[1751952879861,1.70472976,659.65,659.22,2.2740107]
[1751952880355,1.70472976,659.65,659.21,2.2740107]
[1751952884161,1.70472976,659.68,659.18,1.646]
[1751952884557,1.70472976,659.69,659.18,1.646]
[1751952887259,1.70472976,659.69,659.12,2.53786894]
[1751952887763,1.70472976,659.69,659.13,2.2740107]
[1751952889666,1.70472976,659.69,659.14,2.018]
[1751952894069,1.70472976,659.67,659.17,2.2740107]
[1751952894470,1.70472976,659.66,659.21,2.2740107]
[1751952894971,1.70472976,659.73,659.14,2.018]
[1751952895670,1.70472976,659.73,659.18,0.26386425]
[1751952903875,1.70472976,659.74,659.18,0.26386425]
[1751952904678,1.70472976,659.7,659.18,0.26386425]
[1751952905873,0.41359673,659.82,659.18,0.26386425]
[1751952905874,1.70472976,659.69,659.18,0.26386425]
[1751952908176,1.70472976,659.76,659.18,0.26386425]
[1751952909177,2.95485471,659.76,659.18,0.26386425]
[1751952909378,1.70472976,659.76,659.18,0.26386425]
[1751952911688,1.70472976,659.75,659.18,0.26386425]
[1751952912884,2.72391011,659.75,659.18,0.26386425]
[1751952913087,1.70472976,659.75,659.18,0.26386425]
[1751952918292,1.70472976,659.71,659.18,0.26386425]
[1751952922497,1.70472976,659.69,659.18,0.26386425]
[1751952922907,1.70472976,659.7,659.18,0.26386425]
[1751952924608,1.70472976,659.69,659.18,0.26386425]
[1751952925607,1.70472976,659.68,659.18,0.26386425]
[1751952926107,1.70472976,659.73,659.18,0.26386425]
[1751952926808,1.70472976,659.72,659.18,0.26386425]
[1751952929606,1.70472976,659.71,659.19,1.585]
[1751952936120,1.70472976,659.65,659.2,2.2740107]
[1751952936620,1.70472976,659.66,659.19,1.585]
[1751952936918,1.70472976,659.63,659.19,1.585]
[1751952939222,1.70472976,659.64,659.19,1.585]
[1751952941023,1.70472976,659.61,659.19,1.585]
[1751952941321,1.70472976,659.62,659.19,1.585]
[1751952941523,1.70472976,659.61,659.19,1.585]
[1751952941918,1.70472976,659.59,659.19,1.585]
[1751952942423,1.70472976,659.58,659.19,1.585]
[1751952943219,1.70472976,659.59,659.19,1.585]
[1751952944424,1.70472976,659.62,659.19,1.585]
[1751952945627,1.70472976,659.63,659.19,1.585]
[1751952945927,1.70472976,659.62,659.19,1.585]
[1751952946122,2.2688786,659.77,659.19,1.585]
[1751952946123,1.70472976,659.61,659.19,1.585]
[1751952946327,1.70472976,659.62,659.19,1.585]
[1751952948224,1.70472976,659.63,659.19,1.585]
[1751952948624,2.95450483,659.63,659.19,1.585]
[1751952948829,1.70472976,659.63,659.19,1.585]
[1751952952430,1.70472976,659.64,659.19,1.585]
[1751952954236,1.70472976,659.62,659.19,1.585]
[1751952955532,1.70472976,659.6,659.19,1.585]
[1751952964139,1.7017793,659.6,659.19,1.585]
[1751952965138,1.7017793,659.61,659.19,1.585]
[1751952970334,1.7017793,659.62,659.19,1.585]
[1751952972041,1.7017793,659.61,659.19,1.585]
[1751952973639,1.7017793,659.63,659.19,1.585]
[1751952976540,1.7017793,659.63,659.18,0.26386425]
[1751952978937,1.7017793,659.62,659.18,0.26386425]
[1751952980343,1.7017793,659.62,659.19,2.142]
[1751952981940,0.4130998,659.73,659.19,2.142]
[1751952981941,1.7017793,659.64,659.19,2.142]
[1751952983441,1.7017793,659.63,659.19,2.142]
[1751952983642,1.7017793,659.64,659.19,2.142]
[1751952983844,3.96871943,659.77,659.19,2.142]
[1751952984042,2.26694013,659.76,659.19,2.142]
[1751952984245,1.24826583,659.76,659.19,2.142]
[1751952984444,1.7017793,659.77,659.19,2.142]
[1751952987248,1.7017793,659.76,659.19,2.142]
[1751952988648,1.7017793,659.72,659.19,2.142]
[1751952988851,1.7017793,659.71,659.19,2.142]
[1751952992855,1.7017793,659.68,659.19,2.142]
[1751952993853,1.7017793,659.73,659.19,2.142]
[1751952994954,3.96802029,659.73,659.19,2.142]
[1751952995254,1.01797516,659.72,659.19,2.142]
[1751952995556,1.7017793,659.73,659.19,2.142]
[1751952999858,1.70350471,659.73,659.19,2.142]
[1751953003258,1.70350471,659.74,659.19,2.142]
[1751953003758,1.70350471,659.7,659.19,2.142]
[1751953005261,1.70350471,659.71,659.19,2.142]
[1751953006173,1.70350471,659.7,659.19,2.142]
[1751953006463,1.70350471,659.69,659.19,2.142]
[1751953007062,1.70350471,659.7,659.19,2.142]
[1751953010969,1.70350471,659.77,659.19,2.142]
[1751953011168,1.70350471,659.71,659.19,2.142]
[1751953011665,1.70350471,659.72,659.19,2.142]
[1751953012069,1.70350471,659.71,659.19,2.142]
[1751953012368,1.70350471,659.72,659.19,2.142]
[1751953012564,1.70350471,659.71,659.19,2.142]
[1751953013268,1.70350471,659.72,659.19,2.142]
[1751953016168,1.70350471,659.71,659.19,2.142]
[1751953017372,1.70350471,659.71,659.18,0.26386425]
[1751953018376,1.70350471,659.7,659.18,0.26386425]
[1751953019277,1.70350471,659.69,659.18,0.26386425]
[1751953020072,2.26591047,659.8,659.18,0.26386425]
[1751953020283,0.26386925,659.91,659.18,0.26386425]
[1751953020284,1.70305535,659.69,659.18,0.26386425]
[1751953020573,0.26386925,659.91,659.18,0.26386425]
[1751953020574,1.70305535,659.68,659.18,0.26386425]
[1751953021178,1.70305535,659.69,659.18,0.26386425]
[1751953021478,1.70305535,659.69,659.19,1.434]
[1751953022278,1.70305535,659.74,659.19,3.70293863]
[1751953022578,1.70305535,659.75,659.19,1.434]
[1751953023277,1.70305535,659.77,659.19,1.434]
[1751953023476,1.01745906,659.84,659.22,2.26893863]
[1751953023773,1.70305535,659.87,659.22,2.26893863]
[1751953024275,0.41331892,659.98,659.22,2.26893863]
[1751953024478,2.67879921,659.99,659.22,2.26893863]
[1751953024775,2.67879921,659.99,659.19,1.434]
[1751953025278,0.26385224,660.0,659.19,1.434]
[1751953025479,1.7021058,659.89,659.19,1.434]
[1751953026078,0.26385224,660.0,659.19,1.434]
[1751953028976,1.70219942,659.9,659.19,1.434]
[1751953030479,1.70219942,659.91,659.19,1.434]
[1751953032678,1.70219942,659.92,659.19,1.434]
[1751953033184,1.70219942,659.91,659.19,1.434]
[1751953034384,1.70219942,659.92,659.19,1.434]
[1751953034579,1.70219942,659.9,659.19,1.434]
[1751953035180,1.70219942,659.87,659.24,2.266718]
[1751953035584,1.70219942,659.88,659.23,2.266718]
[1751953035779,1.70048045,659.88,659.23,2.266718]
[1751953035981,1.70048045,659.88,659.24,2.266718]
[1751953037681,1.70048045,659.89,659.23,2.266718]
[1751953038481,1.70048045,659.89,659.22,2.266718]
[1751953039084,1.70048045,659.89,659.23,2.266718]
[1751953039481,1.70048045,659.89,659.22,2.266718]
[1751953039899,1.70048045,659.89,659.23,2.266718]
[1751953040783,1.70048045,659.89,659.22,2.266718]
[1751953041287,1.70048045,659.89,659.23,2.266718]
[1751953041483,1.70048045,659.89,659.22,2.266718]
[1751953041684,1.70048045,659.9,659.2,2.266718]
[1751953044090,1.70048045,659.9,659.21,2.266718]
[1751953044287,1.70048045,659.9,659.19,2.266718]
[1751953046392,1.70048045,659.9,659.2,2.061]
[1751953046688,1.70048045,659.91,659.2,2.061]
[1751953047494,1.70048045,659.9,659.2,2.061]
[1751953048090,1.70048045,659.9,659.2,4.327718]
[1751953048293,1.70048045,659.9,659.2,2.061]
[1751953048891,1.70048045,659.9,659.21,2.266718]
[1751953049795,1.70048045,659.9,659.2,4.327718]
[1751953050392,1.70048045,659.91,659.2,2.061]
[1751953054799,1.70048045,659.92,659.2,2.061]
[1751953058500,1.70048045,659.91,659.2,2.061]
[1751953060301,1.70048045,659.9,659.2,4.327718]
[1751953061002,1.70048045,659.9,659.2,2.061]
[1751953061202,1.70048045,659.9,659.2,4.327718]
[1751953062598,1.70048045,659.89,659.22,2.266718]
[1751953063198,1.70048045,659.89,659.21,2.266718]
[1751953064302,1.70048045,659.89,659.2,2.061]